Cogmind - Beta 16 @@@ ROGUE MODE // 2026.01.20 @ 18:47:19 Player: +Jones Result: Destroyed by U1-20B(R) with Subdweller Machine Gun Performance ------------- Evolutions (0) 0 Regions Visited (3) 600 Robots Destroyed (43) 215 Value Destroyed (835) 835 Prototype IDs (3) 60 Alien Tech Used (0) 0 Bonus (-66) -66 TOTAL SCORE: 1644 Bonus ------- Friendly Fire -66 Cogmind --------- Core Integrity 0/250 Matter 137/300 Energy 100/100 System Corruption 0% Temperature Cool (0) Movement Rolling (95) Ox1 Location -10/Subcaves Parts ------- > --- POWER (1) -------- (None) > --- PROPULSION (2) --- Wheel Wheel > --- UTILITY (2) ------ Large Storage Unit Seismic Detector > --- WEAPON (2) ------- Mini Grenade Launcher Mini Grenade Launcher > --- INVENTORY (15) --- Light Treads High-capacity Storage Unit Huge Storage Unit Machine Analyzer Core Shielding Backup Plating I Hacking Suite Beam Rifle Beam Rifle Particle Cannon Particle Cannon Light Assault Rifle Mining Laser Peak State ------------ > --- POWER ------------ Ion Engine > --- PROPULSION ------- Light Treads Light Treads > --- UTILITY ---------- Large Storage Unit Core Shielding > --- WEAPON ----------- Particle Cannon Particle Cannon > --- INVENTORY -------- Ion Engine Light Treads Light Treads Light Treads Wheel High-capacity Storage Unit Machine Analyzer Hacking Suite EM Pulse Gun Beam Rifle Beam Rifle Beam Rifle Light Assault Rifle Light Assault Rifle Mining Laser [Rating: 11] Favorites ----------- Power Ion Engine Engine Ion Engine Propulsion Light Treads Treads Light Treads Wheel Wheel Utility Large Storage Unit Device Seismic Detector Storage Large Storage Unit Protection Core Shielding Weapon Particle Cannon Energy Gun Medium Laser Energy Cannon Particle Cannon Ballistic Gun Assault Rifle Launcher Mini Grenade Launcher Special Weapon Mining Laser Build | -11 -10 -10 -10 ------- Run | Yrd Mat Min Sub Slots Evolved . | . . . . Power . | . . . . Propulsion . | . . . . Utility . | . . . . Weapon . | . . . . Parts Attached 27 | 7 16 1 3 Power 3 | 1 2 . . Engine 3 | 1 2 . . Core . | . . . . Reactor . | . . . . Propulsion 6 | 2 3 . 1 Treads 4 | 2 2 . . Leg . | . . . . Wheel 2 | . 1 . 1 Hover . | . . . . Flight . | . . . . Utility 6 | 2 3 1 . Device 2 | 1 . 1 . Storage 2 | 1 1 . . Processor . | . . . . Hackware . | . . . . Protection 2 | . 2 . . Artifact . | . . . . Weapon 12 | 2 8 . 2 Energy Gun 4 | 1 3 . . Energy Cannon 2 | . 2 . . Ballistic Gun 3 | 1 2 . . Ballistic Cannon . | . . . . Launcher 2 | . . . 2 Special Weapon 1 | . 1 . . Impact Weapon . | . . . . Slashing Weapon . | . . . . Piercing Weapon . | . . . . Special Melee Weapon . | . . . . Unidentified Prototypes . | . . . . Parts Lost 7 | . 4 . 3 Power 1 | . . . 1 Propulsion 4 | . 2 . 2 Utility 1 | . 1 . . Weapon 1 | . 1 . . Highest Loss Streak 3 | . 2 . 3 To Critical Strikes . | . . . . Average Backups 10 | 1 7 15 14 Power . | . . . . Propulsion 2 | . 1 3 2 Utility 3 | . 1 5 6 Weapon 5 | 1 3 6 6 Tool/Special . | . . . . Unused Backups 8 | . 2 . 6 Power . | . . . . Propulsion 2 | . 1 . 1 Utility 4 | . . . 4 Weapon 2 | . 1 . 1 Tool/Special . | . . . . Average Slot Usage (%) 99 | . 99 100 97 Engine 13 | . 14 14 12 Treads 27 | . 27 28 24 Device 8 | . 9 6 14 Storage 14 | . 14 14 14 Protection 5 | . 4 7 . Energy Gun 6 | . 14 . . Energy Cannon 15 | . 3 28 17 Ballistic Gun 3 | . 7 . . Special Weapon 1 | . 3 . . Peak Build Rating 11 | 7 11 11 11 Average Rating 9 | 5 7 11 10 On Entrance 7 | . 7 10 11 Avg Prop Armor Cover (%) 14 | . 14 . . Naked Turns . | . . . . Heaviest Build 34 | 15 34 34 34 Greatest Support 40 | 40 40 40 40 Greatest Overweight (x) 2 | . 2 . 1 Average Overweight (x) . | . . . . Largest Inventory Capacity 15 | 8 15 15 15 Average Capacity 14 | 7 13 15 15 Most Carried 15 | 2 15 15 15 Average Carried 11 | 1 7 14 14 Final Capacity 15 | 8 15 15 15 Final Carried 15 | 2 15 15 13 Class Distribution -------------------- 100% | Mutant Dominant Class ---------------- Mutant | -10/Materials Mutant | -10/Mines Mutant | -10/Subcaves Resources | -11 -10 -10 -10 ----------- Run | Yrd Mat Min Sub Matter Collected 855 | 296 354 110 95 Remotely . | . . . . Salvage Created 1120 | 107 718 179 116 Parts 84 | 7 51 15 11 Haulers Intercepted 2 | . 2 . . Recyclers Shooed . | . . . . Parts Field Recycled . | . . . . Retrieved Matter . | . . . . Parts Self-Destructed 12 | . . . 12 Prevented . | . . . . Parts Restored . | . . . . Kills | -11 -10 -10 -10 ------- Run | Yrd Mat Min Sub Combat Hostiles Destroyed 26 | . 16 4 6 Guns 14 | . 13 . 1 Cannons 7 | . 3 3 1 AOE 4 | . . . 4 Classes Destroyed 13 | 2 8 . 3 Worker 2 | . 2 . . Builder 1 | . 1 . . Tunneler 4 | 2 1 1 . Hauler 2 | . 2 . . Recycler 1 | 1 . . . Mechanic 1 | . 1 . . Operator 1 | . 1 . . Turret 2 | . . . 2 Watcher 3 | . 3 . . Swarmer 12 | . 9 . 3 Grunt 11 | . 7 4 . Subdweller 3 | . . . 3 Scientist 1 | . . . 1 Best Kill Streak 6 | 1 4 2 6 Combat Bots Only 3 | . 3 2 3 Max Kills in Single Turn 2 | 1 1 1 2 Gunslinging . | . . . . Exploded 2 | . . . 2 Melee . | . . . . Uniques/NPCs Destroyed . | . . . . Combat | -11 -10 -10 -10 -------- Run | Yrd Mat Min Sub Hostile Shots Fired 149 | . 88 11 50 Missed 35 | . 18 1 16 Hits 114 | . 70 10 34 Projectile 114 | . 70 10 34 Damage Taken 1191 | . 708 148 335 Core 259 | . 157 27 75 Absorbed by Shields . | . . . . Redirected to Shielding 22 | . 17 5 . Core Remaining (%) 100 | 100 . . . Volleys Fired 135 | 10 96 14 15 Largest 2 | 2 2 2 2 Hottest 136 | 70 136 136 136 Shots Fired 246 | 20 169 28 29 Gun 167 | 20 144 . 3 Cannon 41 | . 4 28 9 Launcher 17 | . . . 17 Special 21 | . 21 . . Kinetic 56 | 10 43 . 3 Thermal 171 | 10 124 28 9 Explosive 17 | . . . 17 Electromagnetic 2 | . 2 . . Robot Hit Streak 18 | 5 18 15 18 Robot Miss Streak 3 | 3 3 1 1 Penetration Max . | . . . . Secondary Targets . | . . . . Shots Hit Robots 140 | 12 92 20 16 Core Hits 70 | 4 39 6 21 Critical Kills . | . . . . Critical Parts Destroyed . | . . . . Critical Strikes 11 | 2 9 . . Burn 11 | 2 9 . . Melee Attacks . | . . . . Impact . | . . . . Slashing . | . . . . Piercing . | . . . . Sneak Attacks . | . . . . Combat Hostiles . | . . . . Follow-up Attacks . | . . . . Damage Inflicted 2635 | 155 1284 410 786 Guns 1381 | 155 1199 . 27 Cannons 655 | . 61 410 184 Explosions 575 | . . . 575 Melee . | . . . . Ramming . | . . . . Kinetic 442 | 65 350 . 27 Thermal 1607 | 90 923 410 184 Explosive 575 | . . . 575 Electromagnetic 11 | . 11 . . Impact . | . . . . Slashing . | . . . . Piercing . | . . . . Highest Corruption . | . . . . Average Corruption . | . . . . Corruption Purged . | . . . . Corruption Blocked . | . . . . Overload Shots . | . . . . Overflow Damage 40 | . . 28 12 Projectiles 28 | . . 28 . Explosions 12 | . . . 12 Melee . | . . . . Knockbacks . | . . . . Impact . | . . . . Kinetic . | . . . . Secondary . | . . . . Self-Inflicted Damage 40 | . . . 40 Shots 1 | . . . 1 Rammed . | . . . . Targets Rammed . | . . . . Kicked . | . . . . Crushed . | . . . . Highest Temperature 336 | 27 333 336 45 Average Temperature 64 | 11 61 105 16 Received Heat Transfer 408 | . 216 84 108 Siege Activations . | . . . . Martial Activations . | . . . . Shielding Activations . | . . . . Robots Disrupted . | . . . . Combat Hostiles . | . . . . Robots Corrupted . | . . . . Combat Hostiles . | . . . . Parts Fried . | . . . . Impact Corruptions . | . . . . Robots Melted 1 | . . 1 . Combat Hostiles 1 | . . 1 . Parts Melted 10 | 1 8 1 . Heat Transferred 4786 | 407 3306 740 333 Parts Sabotaged . | . . . . Parts Stolen . | . . . . Parts Stripped . | . . . . Power Chain Reactions . | . . . . Alert | -11 -10 -10 -10 ------- Run | Yrd Mat Min Sub Maximum Alert Level . | . . . . Low Security (%) 100 | 100 100 100 . Level 1 . | . . . . Level 2 . | . . . . Level 3 . | . . . . Level 4 . | . . . . Level 5 . | . . . . High Security . | . . . . Max Security . | . . . . Peak Influence 164 | 5 164 103 . Initial 53 | . . 53 . Average 39 | 1 70 10 . Influence Increases 816 | 15 551 105 145 Destroy 0b10 Robot/C 500 | . 320 80 100 Destroy 0b10 Robot/NC 75 | 15 55 5 . Destroy Leader 90 | . 70 20 . Successful Hack 41 | . 41 . . Destroy Structure 20 | . 20 . . Lose Combat Pursuer 90 | . 45 . 45 Influence Decreases 731 | 15 414 242 60 Entered New Map 84 | . . 84 . Time Decay 577 | 15 374 158 30 Lost Part 70 | . 40 . 30 Squads Dispatched 2 | . 2 . . Investigation 1 | . 1 . . Extermination . | . . . . Reinforcement 1 | . 1 . . Assault . | . . . . Garrison . | . . . . Intercept . | . . . . Searches Triggered . | . . . . Construction Impeded . | . . . . Haulers Reinforced . | . . . . Active Scanning Responses . | . . . . Cargo Convoy Interrupts . | . . . . Stealth | -11 -10 -10 -10 --------- Run | Yrd Mat Min Sub Distress Signals . | . . . . Communications Jammed . | . . . . Distress Signals . | . . . . Times Spotted 40 | . 25 3 12 Peak Tracking Total 6 | . 3 2 6 Tactical Retreats 4 | . 3 . 1 Traps | -11 -10 -10 -10 ------- Run | Yrd Mat Min Sub Traps Triggered 3 | . 3 . . Indirectly . | . . . . Trap Hack Attempts . | . . . . Triggered . | . . . . Disarmed . | . . . . Reprogrammed . | . . . . Reused . | . . . . Traps Extracted . | . . . . Installed . | . . . . Triggered . | . . . . Machines | -11 -10 -10 -10 ---------- Run | Yrd Mat Min Sub Machines Disabled 4 | . . . 4 Max in Single Turn 3 | . . . 3 Machines Repaired . | . . . . Machines Dismantled . | . . . . Machines Sabotaged . | . . . . Overloaded Fab Kills . | . . . . Hacking | -11 -10 -10 -10 --------- Run | Yrd Mat Min Sub Machines Accessed 9 | . 9 . . Terminals 6 | . 6 . . Fabricators . | . . . . Repair Stations 1 | . 1 . . Recycling Units 2 | . 2 . . Scanalyzers . | . . . . Garrison Access . | . . . . Total Hacks 28 | . 28 . . Successful 14 | . 14 . . Failed 14 | . 14 . . Catastrophic . | . . . . Database Lockouts . | . . . . Manual 20 | . 20 . . Terminals 19 | . 19 . . Fabricators . | . . . . Repair Stations 3 | . 3 . . Recycling Units 6 | . 6 . . Scanalyzers . | . . . . Garrison Access . | . . . . Terminal Hacks 2 | . 2 . . Prototype ID Bank 1 | . 1 . . Locate Traps 1 | . 1 . . Fabricator Hacks . | . . . . Repair Station Hacks 1 | . 1 . . Refit 1 | . 1 . . Recycling Unit Hacks 2 | . 2 . . Retrieve Components 2 | . 2 . . Scanalyzer . | . . . . Garrison Access Hacks . | . . . . Unauthorized Hacks 9 | . 9 . . Terminals 8 | . 8 . . Botnet 2 | . 2 . . Operators 1 | . 1 . . Skim 5 | . 5 . . Fabricators . | . . . . Repair Stations . | . . . . Recycling Units 1 | . 1 . . Reject 1 | . 1 . . Scanalyzers . | . . . . Garrison Access . | . . . . Data Cores Recovered . | . . . . Used . | . . . . Hacking Detections 8 | . 8 . . Full Trace Events . | . . . . Feedback Events . | . . . . Feedback Blocked . | . . . . Robot Schematics Acquired . | . . . . Robots Built . | . . . . Authchips . | . . . . Time . | . . . . Total Robot Build Rating . | . . . . Part Schematics Acquired . | . . . . Parts Built . | . . . . Authchips . | . . . . Time . | . . . . Total Part Build Rating . | . . . . Part Studies Acquired . | . . . . Parts Repaired . | . . . . Time . | . . . . Parts Recycled . | . . . . Recycled Matter . | . . . . Retrieved Matter . | . . . . Retrieved Components 18 | . 18 . . Parts Scanalyzed . | . . . . Part Schematics Acquired . | . . . . Parts Damaged . | . . . . Bothacking | -11 -10 -10 -10 ------------ Run | Yrd Mat Min Sub Used RIF Installer . | . . . . Robots Hacked . | . . . . Non-combat . | . . . . Combat . | . . . . Robot Hacks Applied . | . . . . Relay Couplers Released . | . . . . Fabnet Peak Effective % . | . . . . Robots Rewired . | . . . . Allies Hacked . | . . . . Hacks Repelled . | . . . . Allies | -11 -10 -10 -10 -------- Run | Yrd Mat Min Sub Total Allies . | . . . . Largest Group . | . . . . Highest-Rated Group . | . . . . Highest-Rated Ally . | . . . . Total Orders . | . . . . Ally Attacks . | . . . . Total Damage . | . . . . Kills . | . . . . Allies Corrupted . | . . . . Allies Melted . | . . . . Intel | -11 -10 -10 -10 ------- Run | Yrd Mat Min Sub Active Infowar (turns) 2372 | 11 1178 806 377 Seismic 2372 | 11 1178 806 377 Robot Analysis Total . | . . . . Derelict Logs Recovered 3 | . . 1 2 Drone Launches . | . . . . Drone Recoveries . | . . . . Exploration | -11 -10 -10 -10 ------------- Run | Yrd Mat Min Sub Turns Passed 3987 | 147 1798 1665 377 Spaces Moved 1647 | 63 860 525 199 Core 2 | 2 . . . Treads 1562 | 61 806 525 170 Legs . | . . . . Wheels 83 | . 54 . 29 Hover . | . . . . Flight . | . . . . Fastest Speed 50 | 50 110 160 95 Average Speed 157 | 156 156 160 150 Slowest Speed 240 | 160 240 160 160 Overloaded Moves . | . . . . Propulsion Burnouts . | . . . . Robots Hopped . | . . . . Potential Cave-ins . | . . . . Cave-ins Triggered . | . . . . Exploration Rate (%) 54 | 7 95 97 18 Regions Visited 3 Branch Regions 2 Pre-discovered Areas 2 | . 2 . . Known Exits Taken 2 | . 1 1 . Unknown Exits Taken 1 | 1 . . . Scrap Searched 2 | . . 2 . Spaces Dug 9 | . 9 . . Terrain Destroyed 87 | . 20 . 67 Melee . | . . . . Projectile 20 | . 20 . . AOE 67 | . . . 67 Terrain Rammed . | . . . . Walls Destroyed . | . . . . Machines Disabled . | . . . . Actions | -11 -10 -10 -10 --------- Run | Yrd Mat Min Sub Total 2744 | 88 1091 1321 244 Wait 878 | 7 74 777 20 Move 1644 | 62 859 524 199 Hop . | . . . . Pick Up 21 | 2 18 1 . Fast Attach 13 | 7 6 . . Attach 6 | . 4 . 2 Detach 3 | . 3 . . Swap 34 | . 22 4 8 Drop 10 | . 9 1 . Fire 135 | 10 96 14 15 Melee . | . . . . Ram . | . . . . Kick . | . . . . Crush . | . . . . Escape Stasis . | . . . . Rewire . | . . . . Trap . | . . . . Miscellaneous . | . . . . Route ------- -11/Scrapyard -10/Materials (discovered 5 exits: *Mat x3 / *Min / Sub) -10/Mines (discovered 3 exits: *Mat x2 / *Sub) -10/Subcaves (discovered 3 exits: Mat x2 / *Rec) History --------- Turn | Location | Event 20 | -11/Scrapyard | Discovered new exit (range 15) 148 | -11/Scrapyard | Entered Materials 310 | -10/Materials | Build established: Mutant 596 | -10/Materials | Discovered new exit (range 12) 879 | -10/Materials | Learned location of Mines (-9) 933 | -10/Materials | Learned Storage emergency access door positions 943 | -10/Materials | Learned location of 2 exits from Subcaves 944 | -10/Materials | Learned 2 Storage zone layouts 945 | -10/Materials | Identified exit to Materials 945 | -10/Materials | Identified exit to Mines 947 | -10/Materials | Identified exit to Subcaves 953 | -10/Materials | Learned location of Recycling (-9) 968 | -10/Materials | Learned Storage emergency access door positions 1289 | -10/Materials | Core integrity fell below 50% 1946 | -10/Materials | Entered Mines 1967 | -10/Mines | Discovered exit to Materials (range 5) 2753 | -10/Mines | Assembled infested the area 2758 | -10/Mines | Assisted by a Guerilla fighting off Assembled 3422 | -10/Mines | Learned 8 Materials zone layouts 3461 | -10/Mines | Discovered exit to Materials (range 9) 3601 | -10/Mines | Discovered exit to Subcaves (range 5) 3611 | -10/Mines | Entered Subcaves 3612 | -10/Subcaves | Approached by a straggling Scientist 3612 | -10/Subcaves | Identified exit to Recycling 3613 | -10/Subcaves | Identified exit to Materials 3934 | -10/Subcaves | Core integrity fell below 20% 3974 | -10/Subcaves | Lost 3 parts (1p2n) 3988 | -10/Subcaves | Destroyed by U1-20B(R) with Subdweller Machine Gun Last Messages --------------- 03803_ Acquired 40 matter. 03817_ Acquired 5 matter. 03883_ Acquired derelict log, extracted data. Data stored: Storage entrances (x1). 03912_ S-10 Pest destroyed. 03913_ Destroyed Lgt. Ion Engine. 03913_ S-10 Pest destroyed. 03913_ Machine disabled. 03913_ S-10 Pest destroyed. 03918_ Destroyed Flight Unit. 03924_ S-10 Pest destroyed. 03936_ Lgt. Treads destroyed. 03937_ Autobeam Turret destroyed. 03938_ Lgt. Treads destroyed. 03943_ Autobeam Turret destroyed. 03943_ Ion Engine destroyed. 03943_ Destroyed Ion Engine. 03948_ Acquired 12 matter. 03954_ CE-LHP(R): "SUBHATE!" 03971_ Acquired 14 matter. Map ----- +----------------------------------------------------+ | ?????????????????????????????????????????????????? | | ?????????????????????????????????????????????????? | | ?????????????????????????????????????????????????? | | ?????????????????????????????????????????????????? | | ?????????????????????????????????????????????????? | | ?????????????????????????????????????????????????? | | ?????????????????????????????????????????????????? | | ?????????????????????????????????????????????????? | | ?????????????????????????????????????????????????? | | ?????????????????????????????????????????????????? | | ???????????????????? ?"??????????????????????????? | | ?????????????? ?????"""""##"?????????????????????? | | ??????????????? ????? """"""????#???????????????? | | ????????????????"???? """"""???? #???????????????? | | ????????????????? ???? " "???? ##??????????????? | | ?????????????????? ??? R #???? #??????????????? | | ??????????????????? ### ???? #??????????????? | | ????????????????????%! #???# #???????????????? | | ????????????????????## #### #?????##????????? | | ????????????????????# #R #????? #????????? | | ????????????????????# & #????# ##???????? | | ????????????????????# & #????# #???????? | | ???????????????????## & ## ######% ??##????? | | ???????????????????# #??# %??? #????? | | ???????????????????# ##??# ??? ##????? | | ???????????????????# @ ##?# #??? ##???? | | ???????????????????#### ### #??? #???? | | ??????????????????????## #?? #??? | | ???????????????????????# ## #??? | | ??????????????????????## #???? | | ?????????????????????# > #???? | | ????????????????????# ## #??? | | ????????????????????# ## # #???? | | ????????????????????# ## #### ####? #????? | | #?????######?????#####?###??# #????? #????? | | #?##### ##????# ##???????# ##?##??? ###?????? | | ### #????# #???????## ## #????????????? | | ## #???## #???????## #?????????????? | | ##??# ##??????# ##?????????????? | | ! #??# ##?????# ##??????????????? | | & ##??# ####### #???????????????? | | ###### ### ####????##??????? | | #?# ## ## #### ##?????? | | ##?## # # ## #? | | ###### ##??# #?? | | ##????# #### ### ## ### #??? | | " ##?????# ### ##?# ##?????????? | | ""#??????# ##?###??# #??????????? | | #??????# ## ###??????# ??????????? | | ###??????## #########???????# ?????????? | +----------------------------------------------------+ Best States ------------- Heat Dissipation 25 Energy Generation 10 Energy Capacity 250 Matter Stores 300 Matter Capacity 300 Sight Range 16 Terrain Scan Density 10 Core Shielding 20 Propulsion Shielding 33 Evasion (%) 41 Recoil Reduction 2 Item Schematics ----------------- None Robot Schematics ------------------ None Fabricated ------------ Nothing Repaired ---------- Nothing Studied --------- None Alien Tech Used ----------------- None Achievements -------------- None Challenges ------------ None Game ------ Seed MissileLaunchDrillbomb Manual? 0 Play Time 00:20:41 Cumulative 347.3 hours Start 2026.01.20 @ 18:25:48 End 2026.01.20 @ 18:47:19 Sessions 1 Manual Loads 0 Difficulty Rogue Special Mode None Game No. 281 Rogue 281 Adventurer 0 Explorer 0 Win Type - Total 2 Types 2/0/0/0/0/0/0/0/0/0 Lore% 62 Gallery% 70 Achievement% 48 Wizard Run 0 Options --------- Layout 1 ASCII 0 Keyboard 0 Movement Mouse Keybinds 0 Fullscreen 1 Font 32/SmallcapsGlow Map View 50x35 Zoom Use 0% Tactical HUD 1 Map Filters NONE Filters NONE Steam 1 RUN: bb3c8c94-3d28-42a7-8ceb-e65509ee151d